[Event "*** Titled Tuesday Blitz"]
[Site "Chess.com"]
[Date "2021.04.06"]
[Round "2"]
[White "ukchessbomber"]
[Black "MarcoRiehle"]
[Result "0-1"]
[WhiteElo "2475"]
[BlackElo "2677"]
[TimeControl "180+1"]
[EndTime "10:18:13 PDT"]
[Termination "MarcoRiehle won on time"]

1. d4 {[%clk 0:03:00.9]} 1... d5 {[%clk 0:02:38.1]} 2. c4 {[%clk 0:03:00.5]}
2... e6 {[%clk 0:02:37.9]} 3. Nc3 {[%clk 0:03:00.9]} 3... c5 {[%clk 0:02:35.9]}
4. cxd5 {[%clk 0:02:59.1]} 4... cxd4 {[%clk 0:02:34.5]} 5. Qxd4 {[%clk
0:02:59.7]} 5... Nc6 {[%clk 0:02:34.4]} 6. Qd1 {[%clk 0:02:59.6]} 6... exd5
{[%clk 0:02:35.3]} 7. Qxd5 {[%clk 0:03:00.5]} 7... Be6 {[%clk 0:02:34.9]} 8. Qg5
{[%clk 0:02:18.8]} 8... Nd4 {[%clk 0:02:11.3]} 9. Qd2 {[%clk 0:02:14.5]} 9...
Nf6 {[%clk 0:02:03.3]} 10. e3 {[%clk 0:02:13.2]} 10... Nc6 {[%clk 0:02:00.3]}
11. Bb5 {[%clk 0:02:12.8]} 11... Qb6 {[%clk 0:01:58.7]} 12. Nf3 {[%clk
0:02:10.5]} 12... Bb4 {[%clk 0:01:56.6]} 13. Qe2 {[%clk 0:02:08.5]} 13... O-O
{[%clk 0:01:55.4]} 14. O-O {[%clk 0:02:08]} 14... Rac8 {[%clk 0:01:51.7]} 15.
Bd2 {[%clk 0:02:04.8]} 15... a6 {[%clk 0:01:49.9]} 16. Bd3 {[%clk 0:02:04.3]}
16... Rfe8 {[%clk 0:01:48.4]} 17. a3 {[%clk 0:02:01.6]} 17... Bf8 {[%clk
0:01:46.3]} 18. b4 {[%clk 0:02:01.1]} 18... Bg4 {[%clk 0:01:46.3]} 19. h3 {[%clk
0:01:45.6]} 19... Nd4 {[%clk 0:01:45.7]} 20. exd4 {[%clk 0:01:30.2]} 20... Rxe2
{[%clk 0:01:42.9]} 21. Nxe2 {[%clk 0:01:31.1]} 21... Bxf3 {[%clk 0:01:39.9]} 22.
gxf3 {[%clk 0:01:32]} 22... Bd6 {[%clk 0:01:30]} 23. Rac1 {[%clk 0:01:31.8]}
23... Rd8 {[%clk 0:01:29.8]} 24. Bg5 {[%clk 0:01:23.9]} 24... Bb8 {[%clk
0:01:26.4]} 25. Kh1 {[%clk 0:01:15.5]} 25... Qd6 {[%clk 0:01:24.8]} 26. Bf4
{[%clk 0:01:15.1]} 26... Qe6 {[%clk 0:01:24]} 27. Bxb8 {[%clk 0:00:53.3]} 27...
Qxh3+ {[%clk 0:01:23.5]} 28. Bh2 {[%clk 0:00:52.2]} 28... Qxf3+ {[%clk
0:01:23.5]} 29. Kg1 {[%clk 0:00:52.3]} 29... Qxd3 {[%clk 0:01:24.4]} 30. Rfe1
{[%clk 0:00:47.4]} 30... h6 {[%clk 0:01:21.2]} 31. Rc3 {[%clk 0:00:45]} 31...
Qd2 {[%clk 0:01:17.9]} 32. Rcc1 {[%clk 0:00:45.3]} 32... Rd5 {[%clk 0:01:14.8]}
33. Bf4 {[%clk 0:00:44]} 33... Qb2 {[%clk 0:01:11.8]} 34. Rc8+ {[%clk
0:00:43.5]} 34... Kh7 {[%clk 0:01:11]} 35. Be5 {[%clk 0:00:43.2]} 35... Qd2
{[%clk 0:01:02.3]} 36. Rcc1 {[%clk 0:00:38.7]} 36... Ng4 {[%clk 0:01:01.4]} 37.
Bf4 {[%clk 0:00:38.8]} 37... Qb2 {[%clk 0:01:00.5]} 38. f3 {[%clk 0:00:21.4]}
38... Nf6 {[%clk 0:00:56]} 39. Be5 {[%clk 0:00:21.8]} 39... Rxe5 {[%clk
0:00:54.5]} 40. dxe5 {[%clk 0:00:21.9]} 40... Qxe5 {[%clk 0:00:55.4]} 41. Kg2
{[%clk 0:00:12.6]} 41... Nd5 {[%clk 0:00:53.4]} 42. Ng3 {[%clk 0:00:10.8]} 42...
Nf4+ {[%clk 0:00:52.2]} 43. Kh1 {[%clk 0:00:07]} 43... Qg5 {[%clk 0:00:50.7]}
0-1

[Event "*** Titled Tuesday Blitz"]
[Site "Chess.com"]
[Date "2021.04.06"]
[Round "2"]
[White "dhaessel"]
[Black "Vyacheslav_N"]
[Result "1-0"]
[WhiteElo "2077"]
[BlackElo "2374"]
[TimeControl "180+1"]
[EndTime "10:18:13 PDT"]
[Termination "dhaessel won on time"]

1. d4 {[%clk 0:03:00.9]} 1... Nf6 {[%clk 0:02:16.7]} 2. c4 {[%clk 0:03:00.1]}
2... e6 {[%clk 0:02:16.6]} 3. Nc3 {[%clk 0:02:59.8]} 3... Bb4 {[%clk 0:02:15.5]}
4. e3 {[%clk 0:03:00.2]} 4... O-O {[%clk 0:02:11.8]} 5. Bd3 {[%clk 0:03:00.6]}
5... c5 {[%clk 0:02:11.6]} 6. Ne2 {[%clk 0:02:44.9]} 6... Na6 {[%clk 0:02:01.2]}
7. O-O {[%clk 0:02:43.4]} 7... Qe7 {[%clk 0:01:59.8]} 8. a3 {[%clk 0:02:32.8]}
8... Bxc3 {[%clk 0:01:56.8]} 9. Nxc3 {[%clk 0:02:33.7]} 9... b6 {[%clk
0:01:55.2]} 10. d5 {[%clk 0:02:15.5]} 10... d6 {[%clk 0:01:55]} 11. e4 {[%clk
0:02:04.5]} 11... Nc7 {[%clk 0:01:38.5]} 12. b4 {[%clk 0:01:56.8]} 12... h6
{[%clk 0:01:33.8]} 13. f4 {[%clk 0:01:47.1]} 13... exd5 {[%clk 0:01:17.2]} 14.
cxd5 {[%clk 0:01:44.1]} 14... Re8 {[%clk 0:01:16.3]} 15. Re1 {[%clk 0:01:34.6]}
15... Bd7 {[%clk 0:01:13.1]} 16. h3 {[%clk 0:01:27.6]} 16... Nfxd5 {[%clk
0:01:13.1]} 17. Bd2 {[%clk 0:01:01.3]} 17... Nxc3 {[%clk 0:01:10]} 18. Bxc3
{[%clk 0:01:01.1]} 18... Bb5 {[%clk 0:01:10.1]} 19. Bc2 {[%clk 0:00:59.6]} 19...
Rad8 {[%clk 0:01:05.4]} 20. Qg4 {[%clk 0:00:56.2]} 20... Ne6 {[%clk 0:00:56.3]}
21. Bb3 {[%clk 0:00:42.5]} 21... Nd4 {[%clk 0:00:49.1]} 22. Rad1 {[%clk
0:00:35.1]} 22... Bd7 {[%clk 0:00:45.4]} 23. Qg3 {[%clk 0:00:32.6]} 23... Be6
{[%clk 0:00:40.3]} 24. Bxd4 {[%clk 0:00:27.1]} 24... cxd4 {[%clk 0:00:39]} 25.
Bxe6 {[%clk 0:00:24.8]} 25... Qxe6 {[%clk 0:00:37.3]} 26. Rxd4 {[%clk
0:00:25.3]} 26... d5 {[%clk 0:00:36.2]} 27. Red1 {[%clk 0:00:24.1]} 27... Rc8
{[%clk 0:00:25]} 28. exd5 {[%clk 0:00:21.9]} 28... Qe2 {[%clk 0:00:25]} 29. d6
{[%clk 0:00:20.6]} 29... Rc2 {[%clk 0:00:21.2]} 30. d7 {[%clk 0:00:18.9]} 30...
Rd8 {[%clk 0:00:19.9]} 31. Re1 {[%clk 0:00:17.7]} 1-0

[Event "*** Titled Tuesday Blitz"]
[Site "Chess.com"]
[Date "2021.04.06"]
[Round "2"]
[White "Annagozel"]
[Black "Zarikovs1999"]
[Result "0-1"]
[WhiteElo "1819"]
[BlackElo "2361"]
[TimeControl "180+1"]
[EndTime "10:18:15 PDT"]
[Termination "Zarikovs1999 won on time"]

1. e4 {[%clk 0:03:00.9]} 1... c5 {[%clk 0:03:00.2]} 2. Nf3 {[%clk 0:02:59.3]}
2... Nc6 {[%clk 0:03:00.7]} 3. d4 {[%clk 0:02:58.9]} 3... cxd4 {[%clk
0:03:01.6]} 4. Nxd4 {[%clk 0:02:59.2]} 4... Nf6 {[%clk 0:03:01.9]} 5. Nc3 {[%clk
0:02:59]} 5... d6 {[%clk 0:03:01]} 6. Be2 {[%clk 0:02:38]} 6... e5 {[%clk
0:02:59.3]} 7. Nb3 {[%clk 0:02:36]} 7... Be7 {[%clk 0:02:53.5]} 8. O-O {[%clk
0:02:32.7]} 8... O-O {[%clk 0:02:52]} 9. Be3 {[%clk 0:02:31.2]} 9... Be6 {[%clk
0:02:50.1]} 10. f3 {[%clk 0:02:31.3]} 10... d5 {[%clk 0:02:47.6]} 11. exd5
{[%clk 0:02:30.6]} 11... Nxd5 {[%clk 0:02:47.8]} 12. Nxd5 {[%clk 0:02:30.9]}
12... Bxd5 {[%clk 0:02:47.7]} 13. c4 {[%clk 0:02:31]} 13... Be6 {[%clk
0:02:47.8]} 14. Nc5 {[%clk 0:02:23.7]} 14... Bxc5 {[%clk 0:02:38.9]} 15. Bxc5
{[%clk 0:02:22.9]} 15... Nd4 {[%clk 0:02:39.5]} 16. Bxd4 {[%clk 0:02:13.2]}
16... exd4 {[%clk 0:02:37.7]} 17. b3 {[%clk 0:02:08.8]} 17... Qb6 {[%clk
0:02:34.8]} 18. Kh1 {[%clk 0:02:08.7]} 18... Rad8 {[%clk 0:02:33.8]} 19. Bd3
{[%clk 0:02:07.6]} 19... Rfe8 {[%clk 0:02:27.6]} 20. Re1 {[%clk 0:02:06.5]}
20... Qc5 {[%clk 0:02:24.2]} 21. Qe2 {[%clk 0:02:00]} 21... g6 {[%clk
0:02:17.1]} 22. Qe5 {[%clk 0:01:54.2]} 22... Qb4 {[%clk 0:02:14.1]} 23. Qf6
{[%clk 0:01:49]} 23... Bf5 {[%clk 0:01:57.9]} 24. Be4 {[%clk 0:01:14.9]} 24...
Bxe4 {[%clk 0:01:54.9]} 25. fxe4 {[%clk 0:01:13.3]} 25... d3 {[%clk 0:01:52.7]}
26. h4 {[%clk 0:01:04.5]} 26... d2 {[%clk 0:01:47.4]} 27. Rf1 {[%clk 0:01:03.3]}
27... Rd7 {[%clk 0:01:44.1]} 28. h5 {[%clk 0:00:55.8]} 28... Re6 {[%clk
0:01:33.2]} 29. Qf4 {[%clk 0:00:48.8]} 29... Qc5 {[%clk 0:01:13]} 30. Qb8+
{[%clk 0:00:44.8]} 30... Kg7 {[%clk 0:01:08.3]} 31. h6+ {[%clk 0:00:32.6]} 31...
Kxh6 {[%clk 0:01:07.3]} 32. Rad1 {[%clk 0:00:17.7]} 32... Rxe4 {[%clk
0:00:59.9]} 33. Qg3 {[%clk 0:00:03.7]} 33... Qh5+ {[%clk 0:00:53.4]} 34. Kg1
{[%clk 0:00:02.8]} 34... f5 {[%clk 0:00:39.1]} 0-1

[Event "*** Titled Tuesday Blitz"]
[Site "Chess.com"]
[Date "2021.04.06"]
[Round "2"]
[White "Das_Virus_2020"]
[Black "Zkid"]
[Result "0-1"]
[WhiteElo "2463"]
[BlackElo "2849"]
[TimeControl "180+1"]
[EndTime "10:18:18 PDT"]
[Termination "Zkid won on time"]

1. e4 {[%clk 0:03:00.9]} 1... e6 {[%clk 0:02:57.6]} 2. Qe2 {[%clk 0:03:00.6]}
2... c5 {[%clk 0:02:57.3]} 3. Nf3 {[%clk 0:03:00.1]} 3... Nc6 {[%clk 0:02:57.5]}
4. g3 {[%clk 0:02:59.5]} 4... g6 {[%clk 0:02:57]} 5. Bg2 {[%clk 0:02:59.1]} 5...
Bg7 {[%clk 0:02:57.6]} 6. c3 {[%clk 0:02:58.5]} 6... Nge7 {[%clk 0:02:56.1]} 7.
O-O {[%clk 0:02:55.1]} 7... O-O {[%clk 0:02:56]} 8. Rd1 {[%clk 0:02:54.4]} 8...
e5 {[%clk 0:02:56.2]} 9. Na3 {[%clk 0:02:51.9]} 9... d6 {[%clk 0:02:55.8]} 10.
Nc2 {[%clk 0:02:51.1]} 10... f5 {[%clk 0:02:38.9]} 11. exf5 {[%clk 0:02:42.6]}
11... gxf5 {[%clk 0:02:32.6]} 12. d3 {[%clk 0:02:22.8]} 12... d5 {[%clk
0:02:23.5]} 13. b4 {[%clk 0:01:28.6]} 13... cxb4 {[%clk 0:02:20.1]} 14. cxb4
{[%clk 0:01:27.8]} 14... e4 {[%clk 0:02:02.9]} 15. dxe4 {[%clk 0:01:11.9]} 15...
fxe4 {[%clk 0:02:02.7]} 16. Nfd4 {[%clk 0:01:11.7]} 16... Nxd4 {[%clk
0:01:59.5]} 17. Nxd4 {[%clk 0:01:11.2]} 17... Qb6 {[%clk 0:01:55.3]} 18. Be3
{[%clk 0:01:10.7]} 18... Qxb4 {[%clk 0:01:55.1]} 19. Rab1 {[%clk 0:01:10.1]}
19... Qa4 {[%clk 0:01:38.4]} 20. Qh5 {[%clk 0:00:48.2]} 20... Qd7 {[%clk
0:01:26]} 21. h3 {[%clk 0:00:20.5]} 21... Nf5 {[%clk 0:01:17.7]} 22. Nxf5 {[%clk
0:00:15]} 22... Rxf5 {[%clk 0:01:18.6]} 23. Qe2 {[%clk 0:00:09.4]} 23... Qf7
{[%clk 0:01:00.3]} 24. Bxe4 {[%clk 0:00:06.9]} 24... Re5 {[%clk 0:00:39.3]} 25.
Bg2 {[%clk 0:00:06.7]} 25... Bf5 {[%clk 0:00:38.1]} 26. Rbc1 {[%clk 0:00:06.3]}
26... Rae8 {[%clk 0:00:33.4]} 27. Qf3 {[%clk 0:00:05.6]} 27... Be4 {[%clk
0:00:11.6]} 28. Qxf7+ {[%clk 0:00:05.5]} 28... Kxf7 {[%clk 0:00:11.9]} 29. Bxe4
{[%clk 0:00:04.7]} 29... dxe4 {[%clk 0:00:12.8]} 30. Bxa7 {[%clk 0:00:03.7]}
30... Ra5 {[%clk 0:00:12.3]} 31. Rc7+ {[%clk 0:00:02.4]} 31... Re7 {[%clk
0:00:12.2]} 0-1

[Event "*** Titled Tuesday Blitz"]
[Site "Chess.com"]
[Date "2021.04.06"]
[Round "2"]
[White "sbouchet"]
[Black "seorobert1971"]
[Result "0-1"]
[WhiteElo "2344"]
[BlackElo "2761"]
[TimeControl "180+1"]
[EndTime "10:18:18 PDT"]
[Termination "seorobert1971 won on time"]

1. e4 {[%clk 0:03:00.9]} 1... e5 {[%clk 0:02:59.8]} 2. Nc3 {[%clk 0:02:56.4]}
2... Nc6 {[%clk 0:03:00.7]} 3. g3 {[%clk 0:02:55.4]} 3... Nf6 {[%clk 0:03:01]}
4. Bg2 {[%clk 0:02:55.6]} 4... Bb4 {[%clk 0:03:01.2]} 5. Nge2 {[%clk 0:02:55.7]}
5... O-O {[%clk 0:03:01.3]} 6. O-O {[%clk 0:02:54.9]} 6... d6 {[%clk 0:03:01.5]}
7. h3 {[%clk 0:02:54.3]} 7... Be6 {[%clk 0:03:00.3]} 8. d4 {[%clk 0:02:54.3]}
8... exd4 {[%clk 0:02:59.1]} 9. Nxd4 {[%clk 0:02:53.8]} 9... Bxc3 {[%clk
0:02:59.4]} 10. Nxe6 {[%clk 0:02:47.6]} 10... fxe6 {[%clk 0:02:58.1]} 11. bxc3
{[%clk 0:02:48.2]} 11... e5 {[%clk 0:02:57]} 12. f4 {[%clk 0:02:41.5]} 12...
exf4 {[%clk 0:02:55.5]} 13. gxf4 {[%clk 0:02:41.1]} 13... Kh8 {[%clk 0:02:54.5]}
14. Kh1 {[%clk 0:02:37.6]} 14... Qe8 {[%clk 0:02:50]} 15. Re1 {[%clk 0:02:28.1]}
15... Qg6 {[%clk 0:02:47.2]} 16. Rb1 {[%clk 0:02:24.7]} 16... Rae8 {[%clk
0:02:45.6]} 17. f5 {[%clk 0:02:12.4]} 17... Qg3 {[%clk 0:02:43.7]} 18. Rxb7
{[%clk 0:01:59.1]} 18... d5 {[%clk 0:02:35.3]} 19. Re3 {[%clk 0:01:49]} 19...
Qf2 {[%clk 0:02:31.1]} 20. Qd2 {[%clk 0:00:53.4]} 20... Qf4 {[%clk 0:01:55]} 21.
Re1 {[%clk 0:00:50.2]} 21... Qh4 {[%clk 0:01:49.6]} 22. Rxc7 {[%clk 0:00:38.1]}
22... Ne5 {[%clk 0:01:49.3]} 23. Rg1 {[%clk 0:00:20.6]} 23... Nf3 {[%clk
0:01:24.8]} 24. Bxf3 {[%clk 0:00:10.9]} 24... Qxh3+ {[%clk 0:01:24.5]} 25. Qh2
{[%clk 0:00:11.6]} 25... Qxf3+ {[%clk 0:01:24.2]} 26. Qg2 {[%clk 0:00:12.3]}
26... Qh5+ {[%clk 0:01:21.7]} 27. Qh2 {[%clk 0:00:11.6]} 27... Qxh2+ {[%clk
0:01:10.7]} 28. Kxh2 {[%clk 0:00:11.4]} 28... dxe4 {[%clk 0:01:11.1]} 29. Rgxg7
{[%clk 0:00:09.2]} 29... e3 {[%clk 0:01:08.4]} 30. Rge7 {[%clk 0:00:08.3]} 30...
e2 {[%clk 0:00:55.7]} 31. Bd2 {[%clk 0:00:08.6]} 31... Rd8 {[%clk 0:00:36.9]}
32. Be1 {[%clk 0:00:06.5]} 32... Rd5 {[%clk 0:00:31.4]} 33. Rxe2 {[%clk
0:00:05.3]} 33... Rxf5 {[%clk 0:00:31.6]} 34. c4 {[%clk 0:00:04.4]} 34... Rg8
{[%clk 0:00:30.7]} 0-1

[Event "*** Titled Tuesday Blitz"]
[Site "Chess.com"]
[Date "2021.04.06"]
[Round "2"]
[White "fabianvivasz"]
[Black "barbara25"]
[Result "1/2-1/2"]
[WhiteElo "2413"]
[BlackElo "2181"]
[TimeControl "180+1"]
[EndTime "10:18:18 PDT"]
[Termination "Game drawn - insufficient material"]

1. e4 {[%clk 0:03:00.9]} 1... c5 {[%clk 0:02:47.5]} 2. Nc3 {[%clk 0:02:53.6]}
2... a6 {[%clk 0:02:47.1]} 3. g3 {[%clk 0:02:53.3]} 3... b5 {[%clk 0:02:46.6]}
4. Bg2 {[%clk 0:02:53.6]} 4... Bb7 {[%clk 0:02:46.1]} 5. d3 {[%clk 0:02:47.5]}
5... e6 {[%clk 0:02:46.1]} 6. Nh3 {[%clk 0:02:47.5]} 6... Ne7 {[%clk 0:02:44.2]}
7. O-O {[%clk 0:02:43.7]} 7... d5 {[%clk 0:02:43.5]} 8. exd5 {[%clk 0:02:40.3]}
8... Nxd5 {[%clk 0:02:42.9]} 9. Qh5 {[%clk 0:01:45.7]} 9... Be7 {[%clk
0:02:36.6]} 10. Nxd5 {[%clk 0:01:28.3]} 10... Bxd5 {[%clk 0:02:35.6]} 11. Bxd5
{[%clk 0:01:23.1]} 11... Qxd5 {[%clk 0:02:34.8]} 12. Qxd5 {[%clk 0:01:22]} 12...
exd5 {[%clk 0:02:35.7]} 13. Nf4 {[%clk 0:01:19.6]} 13... d4 {[%clk 0:02:34.7]}
14. Re1 {[%clk 0:01:16.1]} 14... Kd7 {[%clk 0:02:34.3]} 15. Nd5 {[%clk
0:01:11.9]} 15... Bd8 {[%clk 0:02:31.2]} 16. a4 {[%clk 0:01:04]} 16... b4 {[%clk
0:02:29.9]} 17. c3 {[%clk 0:00:47.9]} 17... Nc6 {[%clk 0:02:27.7]} 18. Bd2
{[%clk 0:00:42.3]} 18... a5 {[%clk 0:02:23.1]} 19. Rac1 {[%clk 0:00:28.9]} 19...
dxc3 {[%clk 0:02:21.1]} 20. bxc3 {[%clk 0:00:29]} 20... Rc8 {[%clk 0:02:13.6]}
21. Ne3 {[%clk 0:00:23.4]} 21... Re8 {[%clk 0:02:11.1]} 22. Nc4 {[%clk
0:00:23.4]} 22... Bc7 {[%clk 0:02:05.4]} 23. Be3 {[%clk 0:00:17.1]} 23... bxc3
{[%clk 0:02:03.3]} 24. Bxc5 {[%clk 0:00:14.6]} 24... Nb4 {[%clk 0:02:02.9]} 25.
Rxe8 {[%clk 0:00:08.1]} 25... Rxe8 {[%clk 0:02:02.8]} 26. Rxc3 {[%clk
0:00:07.8]} 26... Re1+ {[%clk 0:02:02.5]} 27. Kg2 {[%clk 0:00:08.2]} 27... Rd1
{[%clk 0:02:02.4]} 28. Bxb4 {[%clk 0:00:06.5]} 28... axb4 {[%clk 0:02:02]} 29.
Rb3 {[%clk 0:00:07]} 29... Kc6 {[%clk 0:01:59.2]} 30. Ne3 {[%clk 0:00:06.4]}
30... Rd2 {[%clk 0:01:58.3]} 31. Nc4 {[%clk 0:00:04.6]} 31... Rd1 {[%clk
0:01:58.2]} 32. Nb2 {[%clk 0:00:05]} 32... Rd2 {[%clk 0:01:57.1]} 33. Rxb4
{[%clk 0:00:05.4]} 33... Bd6 {[%clk 0:01:52.1]} 34. Rb3 {[%clk 0:00:04.9]} 34...
Bc5 {[%clk 0:01:52.2]} 35. Nc4 {[%clk 0:00:02.1]} 35... Rxf2+ {[%clk 0:01:51.6]}
36. Kh3 {[%clk 0:00:02.7]} 36... Ra2 {[%clk 0:01:49.8]} 37. Ne5+ {[%clk
0:00:03]} 37... Kd5 {[%clk 0:01:49.2]} 38. Nxf7 {[%clk 0:00:03.3]} 38... Rxa4
{[%clk 0:01:48.4]} 39. Rb7 {[%clk 0:00:03.5]} 39... h6 {[%clk 0:01:47.3]} 40.
Nh8 {[%clk 0:00:03.2]} 40... g5 {[%clk 0:01:47.2]} 41. Rh7 {[%clk 0:00:03.2]}
41... g4+ {[%clk 0:01:41.4]} 42. Kh4 {[%clk 0:00:03.1]} 42... Bb6 {[%clk
0:01:30.9]} 43. Rxh6 {[%clk 0:00:02.6]} 43... Bd8+ {[%clk 0:01:30.9]} 44. Kh5
{[%clk 0:00:03.1]} 44... Be7 {[%clk 0:01:26.2]} 45. Kg6 {[%clk 0:00:03.1]} 45...
Ra2 {[%clk 0:01:23.4]} 46. Rh5+ {[%clk 0:00:03]} 46... Kd4 {[%clk 0:01:22.8]}
47. Kf7 {[%clk 0:00:02.9]} 47... Bd6 {[%clk 0:01:23]} 48. Ng6 {[%clk 0:00:03.2]}
48... Bb4 {[%clk 0:01:20.4]} 49. Nf4 {[%clk 0:00:03.4]} 49... Bd2 {[%clk
0:01:19.4]} 50. Rh4 {[%clk 0:00:03.6]} 50... Bxf4 {[%clk 0:01:18.9]} 51. Rxg4
{[%clk 0:00:04.2]} 51... Rxh2 {[%clk 0:01:16]} 52. Rxf4+ {[%clk 0:00:04.2]}
52... Kxd3 {[%clk 0:01:16.1]} 53. g4 {[%clk 0:00:04.8]} 53... Ke3 {[%clk
0:01:15.6]} 54. Rf6 {[%clk 0:00:05]} 54... Rg2 {[%clk 0:01:15.1]} 55. Rg6 {[%clk
0:00:02.3]} 55... Kf4 {[%clk 0:01:14.7]} 56. Kg7 {[%clk 0:00:02.9]} 56... Rxg4
{[%clk 0:01:14.4]} 57. Rxg4+ {[%clk 0:00:03.6]} 57... Kxg4 {[%clk 0:01:15.3]}
1/2-1/2

[Event "*** Titled Tuesday Blitz"]
[Site "Chess.com"]
[Date "2021.04.06"]
[Round "2"]
[White "fyall777"]
[Black "731291"]
[Result "0-1"]
[WhiteElo "2426"]
[BlackElo "2655"]
[TimeControl "180+1"]
[EndTime "10:18:19 PDT"]
[Termination "731291 won on time"]

1. e4 {[%clk 0:03:00.9]} 1... c5 {[%clk 0:02:59.9]} 2. f3 {[%clk 0:02:59.4]}
2... d5 {[%clk 0:02:59]} 3. Nc3 {[%clk 0:02:56.6]} 3... Nf6 {[%clk 0:02:53.5]}
4. Bb5+ {[%clk 0:02:48.9]} 4... Nc6 {[%clk 0:02:52.7]} 5. Bxc6+ {[%clk
0:02:47.5]} 5... bxc6 {[%clk 0:02:53.6]} 6. d3 {[%clk 0:02:45.2]} 6... e5 {[%clk
0:02:51.5]} 7. Nge2 {[%clk 0:02:44.6]} 7... Bd6 {[%clk 0:02:45]} 8. O-O {[%clk
0:02:44.3]} 8... O-O {[%clk 0:02:45]} 9. Ng3 {[%clk 0:02:44.3]} 9... Rb8 {[%clk
0:02:44]} 10. b3 {[%clk 0:02:43.3]} 10... Be6 {[%clk 0:02:39.3]} 11. Bd2 {[%clk
0:02:37.4]} 11... c4 {[%clk 0:02:34.9]} 12. dxc4 {[%clk 0:02:33.6]} 12... dxc4
{[%clk 0:02:31.9]} 13. Kh1 {[%clk 0:02:31.7]} 13... Bc5 {[%clk 0:02:20]} 14. Rb1
{[%clk 0:02:21]} 14... Bd4 {[%clk 0:02:19.2]} 15. Nce2 {[%clk 0:02:19.2]} 15...
Qe7 {[%clk 0:02:08.9]} 16. Bg5 {[%clk 0:02:16.1]} 16... h6 {[%clk 0:02:00.2]}
17. Nxd4 {[%clk 0:01:38.7]} 17... exd4 {[%clk 0:01:59.6]} 18. Bxf6 {[%clk
0:01:38.7]} 18... Qxf6 {[%clk 0:02:00.5]} 19. f4 {[%clk 0:01:38.6]} 19... Rbd8
{[%clk 0:01:58.7]} 20. f5 {[%clk 0:01:37.8]} 20... Bc8 {[%clk 0:01:57.4]} 21.
Qe2 {[%clk 0:01:23.2]} 21... d3 {[%clk 0:01:56.6]} 22. cxd3 {[%clk 0:01:22.3]}
22... cxd3 {[%clk 0:01:57.5]} 23. Qe3 {[%clk 0:01:20.1]} 23... Rfe8 {[%clk
0:01:57.5]} 24. Qxa7 {[%clk 0:01:19.1]} 24... d2 {[%clk 0:01:53.6]} 25. Rbd1
{[%clk 0:01:16.1]} 25... Qg5 {[%clk 0:01:46.7]} 26. Qf2 {[%clk 0:01:08.2]} 26...
Ba6 {[%clk 0:01:46.2]} 27. Rg1 {[%clk 0:01:07.2]} 27... h5 {[%clk 0:01:45.3]}
28. h3 {[%clk 0:01:03.3]} 28... h4 {[%clk 0:01:38.9]} 29. Nf1 {[%clk 0:01:03.3]}
29... Bxf1 {[%clk 0:01:39.1]} 30. Rgxf1 {[%clk 0:01:01.2]} 30... Rxe4 {[%clk
0:01:39.7]} 31. a4 {[%clk 0:00:56]} 31... Red4 {[%clk 0:01:38.5]} 32. a5 {[%clk
0:00:53.2]} 32... c5 {[%clk 0:01:21.5]} 33. a6 {[%clk 0:00:49.4]} 33... Qf6
{[%clk 0:01:21.8]} 34. Qe2 {[%clk 0:00:47.6]} 34... Rd3 {[%clk 0:01:18.6]} 35.
a7 {[%clk 0:00:44.4]} 35... Qc6 {[%clk 0:01:19]} 36. Rf3 {[%clk 0:00:40.7]}
36... R3d4 {[%clk 0:01:16.2]} 37. f6 {[%clk 0:00:30.2]} 37... Qa8 {[%clk
0:01:05.3]} 38. Re3 {[%clk 0:00:16.9]} 38... Qxa7 {[%clk 0:00:52.6]} 39. Re8+
{[%clk 0:00:16.1]} 39... Rxe8 {[%clk 0:00:53.3]} 40. Qxe8+ {[%clk 0:00:14.8]}
40... Kh7 {[%clk 0:00:53.9]} 41. fxg7 {[%clk 0:00:15.2]} 41... Kxg7 {[%clk
0:00:54.2]} 42. Qe5+ {[%clk 0:00:15.7]} 42... f6 {[%clk 0:00:54.7]} 43. Qe3
{[%clk 0:00:14.4]} 43... Qd7 {[%clk 0:00:53.4]} 44. Qd3 {[%clk 0:00:11]} 44...
Rxd3 {[%clk 0:00:53.2]} 0-1

[Event "*** Titled Tuesday Blitz"]
[Site "Chess.com"]
[Date "2021.04.06"]
[Round "2"]
[White "ethylalcohol"]
[Black "Chuchofrio1"]
[Result "1-0"]
[WhiteElo "2130"]
[BlackElo "2382"]
[TimeControl "180+1"]
[EndTime "10:18:19 PDT"]
[Termination "ethylalcohol won by checkmate"]

1. d4 {[%clk 0:03:00.9]} 1... Nf6 {[%clk 0:02:57.7]} 2. Nf3 {[%clk 0:02:58.9]}
2... g6 {[%clk 0:02:57.2]} 3. Bf4 {[%clk 0:02:55.6]} 3... Bg7 {[%clk 0:02:56.5]}
4. Nc3 {[%clk 0:02:56.1]} 4... O-O {[%clk 0:02:55.5]} 5. Qd2 {[%clk 0:02:56.4]}
5... d6 {[%clk 0:02:55.3]} 6. Bh6 {[%clk 0:02:55.2]} 6... Nc6 {[%clk 0:02:52.9]}
7. O-O-O {[%clk 0:02:50.4]} 7... a6 {[%clk 0:02:51.7]} 8. Bxg7 {[%clk
0:02:45.5]} 8... Kxg7 {[%clk 0:02:50.2]} 9. d5 {[%clk 0:02:45.9]} 9... Na7
{[%clk 0:02:47.6]} 10. e4 {[%clk 0:02:44.6]} 10... b5 {[%clk 0:02:45.4]} 11. Bd3
{[%clk 0:02:39.3]} 11... c5 {[%clk 0:02:43.6]} 12. dxc6 {[%clk 0:02:33.2]} 12...
Nxc6 {[%clk 0:02:41.4]} 13. Nd5 {[%clk 0:02:28.5]} 13... e6 {[%clk 0:02:25.4]}
14. Qc3 {[%clk 0:02:19]} 14... exd5 {[%clk 0:02:18.7]} 15. Qxc6 {[%clk
0:02:17.6]} 15... Ra7 {[%clk 0:02:10.2]} 16. Qc3 {[%clk 0:01:37.1]} 16... Kg8
{[%clk 0:01:58.8]} 17. Qd4 {[%clk 0:01:27.2]} 17... Rc7 {[%clk 0:01:50.6]} 18.
exd5 {[%clk 0:01:26.4]} 18... Bb7 {[%clk 0:01:46.5]} 19. g4 {[%clk 0:01:14.2]}
19... Bxd5 {[%clk 0:01:39.7]} 20. Be2 {[%clk 0:01:13.5]} 20... Be4 {[%clk
0:01:08.1]} 21. Rd2 {[%clk 0:01:06.2]} 21... Re8 {[%clk 0:00:57.2]} 22. g5
{[%clk 0:01:03.5]} 22... Nh5 {[%clk 0:00:41.9]} 23. Bd1 {[%clk 0:00:53.6]} 23...
d5 {[%clk 0:00:34.4]} 24. Re1 {[%clk 0:00:51.9]} 24... Rc4 {[%clk 0:00:24.3]}
25. Qa7 {[%clk 0:00:46.9]} 25... Qa5 {[%clk 0:00:20.9]} 26. a3 {[%clk
0:00:33.2]} 26... Rec8 {[%clk 0:00:20.2]} 27. Nd4 {[%clk 0:00:31.3]} 27... Nf4
{[%clk 0:00:18.5]} 28. Nb3 {[%clk 0:00:27.9]} 28... Qd8 {[%clk 0:00:16.8]} 29.
f3 {[%clk 0:00:25.5]} 29... Bf5 {[%clk 0:00:13]} 30. Re7 {[%clk 0:00:24.1]}
30... Be6 {[%clk 0:00:10.3]} 31. Nd4 {[%clk 0:00:23.2]} 31... Kf8 {[%clk
0:00:07.9]} 32. Nxe6+ {[%clk 0:00:22.8]} 32... fxe6 {[%clk 0:00:08.3]} 33. Rf7+
{[%clk 0:00:22.9]} 33... Kg8 {[%clk 0:00:08.2]} 34. Rg7+ {[%clk 0:00:22.9]}
34... Kh8 {[%clk 0:00:07.7]} 35. Rxh7+ {[%clk 0:00:23.2]} 35... Kg8 {[%clk
0:00:08.6]} 36. Qg7# {[%clk 0:00:23.6]} 1-0